Workbook

Sheet Main
B1: Machined Part Cost Estimator
B2: Design Organization | D2: Mechanical Design Process | I2: Date
B3: Part Evaluated | D3: Part on page 324, 4th edition
A4: Input
B5: What Metal? | E5: What Raw Material Shape? | H5: What finish?
C9: 1 | H9: What tolerance?
E10: What Primary Macining Process?
B14: length | D14: 4 | E14: in | F14: Other machines | H14: 2
B15: =IF(Material!A20=2, "height","outside diameter") -> outside diameter | D15: 2.25 | E15: in | F15: Parts per Batch | H15: 100
B16: =IF(Material!A20=2, "width","inside diameter") -> inside diameter | D16: 0 | E16: in | F16: Hourly rate | H16: 35 | I16: $
B17: Volumetric Ratio (1-99) | D17: 32
B18: =IF(Material!A20=2, "Number of surfaces", "Number of Faces") -> Number of Faces | D18: 7
B19: =IF(Material!A20=2, "", "Number of diameters") -> Number of diameters | D19: 3
A20: Results
B21: Part Wt | C21: =IF(Material!A20=2,Mill!N21,Lathe!$N$24) -> 1.4395644 | D21: lb
B22: Material Cost/lb | C22: =Material!C10 -> 0.33 | D22: $
B23: Material Cost/part | C23: =IF(Material!A20=2,Mill!N22,Lathe!$N$25) -> 1.484550787 | D23: $
B24: Mach time/part | C24: =IF(Material!A20=2,Mill!N19,Lathe!$N$22) -> 0.3127574938 | D24: hr
B25: Labor cost/part | C25: =IF(Material!A20=2,Mill!$N$20,Lathe!$N$23) -> 10.94651228 | D25: $
B26: Total cost | C26: =IF(Material!A20=2,Mill!$N$23,Lathe!$N$26) -> 12.43106307 | D26: $
B46: The Mechanical Design Process | G46: Designed by Professor David G. Ullman
B47: Copyright 2008, McGraw Hill | G47: Form # 14.0

Sheet Mill (hidden)
A1: Mill
A2: NT | B2: Number of parts | C2: 1 | D2: 3 | E2: 5 | F2: 7 | G2: 10 | H2: 20 | I2: 50 | J2: 100 | K2: 250 | L2: 500 | M2: 1000 | N2: =Main!H15 -> 100
A3: LM | C3: =Main!$D14 -> 4 | D3: =Main!$D14 -> 4 | E3: =Main!$D14 -> 4 | F3: =Main!$D14 -> 4 | G3: =Main!$D14 -> 4 | H3: =Main!$D14 -> 4 | I3: =Main!$D14 -> 4 | J3: =Main!$D14 -> 4 | K3: =Main!$D14 -> 4 | L3: =Main!$D14 -> 4 | M3: =Main!$D14 -> 4 | N3: =Main!$D14 -> 4
A4: DA | C4: =Main!$D15 -> 2.25 | D4: =Main!$D15 -> 2.25 | E4: =Main!$D15 -> 2.25 | F4: =Main!$D15 -> 2.25 | G4: =Main!$D15 -> 2.25 | H4: =Main!$D15 -> 2.25 | I4: =Main!$D15 -> 2.25 | J4: =Main!$D15 -> 2.25 | K4: =Main!$D15 -> 2.25 | L4: =Main!$D15 -> 2.25 | M4: =Main!$D15 -> 2.25 | N4: =Main!$D15 -> 2.25
A5: DB | C5: =Main!$D16 -> 0 | D5: =Main!$D16 -> 0 | E5: =Main!$D16 -> 0 | F5: =Main!$D16 -> 0 | G5: =Main!$D16 -> 0 | H5: =Main!$D16 -> 0 | I5: =Main!$D16 -> 0 | J5: =Main!$D16 -> 0 | K5: =Main!$D16 -> 0 | L5: =Main!$D16 -> 0 | M5: =Main!$D16 -> 0 | N5: =Main!$D16 -> 0
A6: RV | C6: =Main!$D17/100 -> 0.32 | D6: =Main!$D17/100 -> 0.32 | E6: =Main!$D17/100 -> 0.32 | F6: =Main!$D17/100 -> 0.32 | G6: =Main!$D17/100 -> 0.32 | H6: =Main!$D17/100 -> 0.32 | I6: =Main!$D17/100 -> 0.32 | J6: =Main!$D17/100 -> 0.32 | K6: =Main!$D17/100 -> 0.32 | L6: =Main!$D17/100 -> 0.32 | M6: =Main!$D17/100 -> 0.32 | N6: =Main!$D17/100 -> 0.32
A7: TPT | B7: Positioning time | C7: =60*Main!$D18 -> 420 | D7: =60*Main!$D18 -> 420 | E7: =60*Main!$D18 -> 420 | F7: =60*Main!$D18 -> 420 | G7: =60*Main!$D18 -> 420 | H7: =60*Main!$D18 -> 420 | I7: =60*Main!$D18 -> 420 | J7: =60*Main!$D18 -> 420 | K7: =60*Main!$D18 -> 420 | L7: =60*Main!$D18 -> 420 | M7: =60*Main!$D18 -> 420 | N7: =60*Main!$D18 -> 420
A8: VM | B8: material removed | C8: =C3*C4*C5*(1-C6) -> 0 | D8: =D3*D4*D5*(1-D6) -> 0 | E8: 0 | F8: 0 | G8: 0 | H8: 0 | I8: 0 | J8: 0 | K8: 0 | L8: 0 | M8: 0 | N8: =N3*N4*N5*(1-N6) -> 0
A9: WM | B9: weight of raw material | C9: =C3*C4*C5*Material!$D11 -> 0 | D9: =D3*D4*D5*Material!$D11 -> 0 | E9: =E3*E4*E5*Material!$D11 -> 0 | F9: =F3*F4*F5*Material!$D11 -> 0 | G9: =G3*G4*G5*Material!$D11 -> 0 | H9: =H3*H4*H5*Material!$D11 -> 0 | I9: =I3*I4*I5*Material!$D11 -> 0 | J9: =J3*J4*J5*Material!$D11 -> 0 | K9: =K3*K4*K5*Material!$D11 -> 0 | L9: =L3*L4*L5*Material!$D11 -> 0 | M9: =M3*M4*M5*Material!$D11 -> 0 | N9: =N3*N4*N5*Material!$D11 -> 0
A10: VF | C10: =IF(Material!$A11=1,143.8,IF(Material!$A11=2,23.1,IF(Material!$A11=3,1.1,IF(Material!$A11=4,13.6,IF(Material!$A11=5,5.55,IF(Material!$A11=6,11,IF(Material!$A11=7,76.2,166.2))))))) -> 23.1 | D10: =IF(Material!$A11=1,143.8,IF(Material!$A11=2,23.1,IF(Material!$A11=3,1.1,IF(Material!$A11=4,13.6,IF(Material!$A11=5,5.55,IF(Material!$A11=6,11,IF(Material!$A11=7,76.2,166.2))))))) -> 23.1 | E10: =IF(Material!$A11=1,143.8,IF(Material!$A11=2,23.1,IF(Material!$A11=3,1.1,IF(Material!$A11=4,13.6,IF(Material!$A11=5,5.55,IF(Material!$A11=6,11,IF(Material!$A11=7,76.2,166.2))))))) -> 23.1 | F10: =IF(Material!$A11=1,143.8,IF(Material!$A11=2,23.1,IF(Material!$A11=3,1.1,IF(Material!$A11=4,13.6,IF(Material!$A11=5,5.55,IF(Material!$A11=6,11,IF(Material!$A11=7,76.2,166.2))))))) -> 23.1 | G10: =IF(Material!$A11=1,143.8,IF(Material!$A11=2,23.1,IF(Material!$A11=3,1.1,IF(Material!$A11=4,13.6,IF(Material!$A11=5,5.55,IF(Material!$A11=6,11,IF(Material!$A11=7,76.2,166.2))))))) -> 23.1 | H10: =IF(Material!$A11=1,143.8,IF(Material!$A11=2,23.1,IF(Material!$A11=3,1.1,IF(Material!$A11=4,13.6,IF(Material!$A11=5,5.55,IF(Material!$A11=6,11,IF(Material!$A11=7,76.2,166.2))))))) -> 23.1 | I10: =IF(Material!$A11=1,143.8,IF(Material!$A11=2,23.1,IF(Material!$A11=3,1.1,IF(Material!$A11=4,13.6,IF(Material!$A11=5,5.55,IF(Material!$A11=6,11,IF(Material!$A11=7,76.2,166.2))))))) -> 23.1 | J10: =IF(Material!$A11=1,143.8,IF(Material!$A11=2,23.1,IF(Material!$A11=3,1.1,IF(Material!$A11=4,13.6,IF(Material!$A11=5,5.55,IF(Material!$A11=6,11,IF(Material!$A11=7,76.2,166.2))))))) -> 23.1 | K10: =IF(Material!$A11=1,143.8,IF(Material!$A11=2,23.1,IF(Material!$A11=3,1.1,IF(Material!$A11=4,13.6,IF(Material!$A11=5,5.55,IF(Material!$A11=6,11,IF(Material!$A11=7,76.2,166.2))))))) -> 23.1 | L10: =IF(Material!$A11=1,143.8,IF(Material!$A11=2,23.1,IF(Material!$A11=3,1.1,IF(Material!$A11=4,13.6,IF(Material!$A11=5,5.55,IF(Material!$A11=6,11,IF(Material!$A11=7,76.2,166.2))))))) -> 23.1 | M10: =IF(Material!$A11=1,143.8,IF(Material!$A11=2,23.1,IF(Material!$A11=3,1.1,IF(Material!$A11=4,13.6,IF(Material!$A11=5,5.55,IF(Material!$A11=6,11,IF(Material!$A11=7,76.2,166.2))))))) -> 23.1 | N10: =IF(Material!$A11=1,143.8,IF(Material!$A11=2,23.1,IF(Material!$A11=3,1.1,IF(Material!$A11=4,13.6,IF(Material!$A11=5,5.55,IF(Material!$A11=6,11,IF(Material!$A11=7,76.2,166.2))))))) -> 23.1
A11: PS | B11: cutting energy | C11: =IF(Material!$A11=1,0.32,IF(Material!$A11=2,1.1,IF(Material!$A11=3,2.25,IF(Material!$A11=4,1.45,IF(Material!$A11=5,1.65,IF(Material!$A11=6,1.1,IF(Material!$A11=7,1,0.16))))))) -> 1.1 | D11: =IF(Material!$A11=1,0.32,IF(Material!$A11=2,1.1,IF(Material!$A11=3,2.25,IF(Material!$A11=4,1.45,IF(Material!$A11=5,1.65,IF(Material!$A11=6,1.1,IF(Material!$A11=7,1,0.16))))))) -> 1.1 | E11: =IF(Material!$A11=1,0.32,IF(Material!$A11=2,1.1,IF(Material!$A11=3,2.25,IF(Material!$A11=4,1.45,IF(Material!$A11=5,1.65,IF(Material!$A11=6,1.1,IF(Material!$A11=7,1,0.16))))))) -> 1.1 | F11: =IF(Material!$A11=1,0.32,IF(Material!$A11=2,1.1,IF(Material!$A11=3,2.25,IF(Material!$A11=4,1.45,IF(Material!$A11=5,1.65,IF(Material!$A11=6,1.1,IF(Material!$A11=7,1,0.16))))))) -> 1.1 | G11: =IF(Material!$A11=1,0.32,IF(Material!$A11=2,1.1,IF(Material!$A11=3,2.25,IF(Material!$A11=4,1.45,IF(Material!$A11=5,1.65,IF(Material!$A11=6,1.1,IF(Material!$A11=7,1,0.16))))))) -> 1.1 | H11: =IF(Material!$A11=1,0.32,IF(Material!$A11=2,1.1,IF(Material!$A11=3,2.25,IF(Material!$A11=4,1.45,IF(Material!$A11=5,1.65,IF(Material!$A11=6,1.1,IF(Material!$A11=7,1,0.16))))))) -> 1.1 | I11: =IF(Material!$A11=1,0.32,IF(Material!$A11=2,1.1,IF(Material!$A11=3,2.25,IF(Material!$A11=4,1.45,IF(Material!$A11=5,1.65,IF(Material!$A11=6,1.1,IF(Material!$A11=7,1,0.16))))))) -> 1.1 | J11: =IF(Material!$A11=1,0.32,IF(Material!$A11=2,1.1,IF(Material!$A11=3,2.25,IF(Material!$A11=4,1.45,IF(Material!$A11=5,1.65,IF(Material!$A11=6,1.1,IF(Material!$A11=7,1,0.16))))))) -> 1.1 | K11: =IF(Material!$A11=1,0.32,IF(Material!$A11=2,1.1,IF(Material!$A11=3,2.25,IF(Material!$A11=4,1.45,IF(Material!$A11=5,1.65,IF(Material!$A11=6,1.1,IF(Material!$A11=7,1,0.16))))))) -> 1.1 | L11: =IF(Material!$A11=1,0.32,IF(Material!$A11=2,1.1,IF(Material!$A11=3,2.25,IF(Material!$A11=4,1.45,IF(Material!$A11=5,1.65,IF(Material!$A11=6,1.1,IF(Material!$A11=7,1,0.16))))))) -> 1.1 | M11: =IF(Material!$A11=1,0.32,IF(Material!$A11=2,1.1,IF(Material!$A11=3,2.25,IF(Material!$A11=4,1.45,IF(Material!$A11=5,1.65,IF(Material!$A11=6,1.1,IF(Material!$A11=7,1,0.16))))))) -> 1.1 | N11: =IF(Material!$A11=1,0.32,IF(Material!$A11=2,1.1,IF(Material!$A11=3,2.25,IF(Material!$A11=4,1.45,IF(Material!$A11=5,1.65,IF(Material!$A11=6,1.1,IF(Material!$A11=7,1,0.16))))))) -> 1.1
A12: TMC | B12: maching time | C12: =(5*C3+(0.5*C4))*Main!$D18/Mill!C10 -> 6.401515152 | D12: =(5*D3+(0.5*D4))*Main!$D18/Mill!D10 -> 6.401515152 | E12: =(5*E3+(0.5*E4))*Main!$D18/Mill!E10 -> 6.401515152 | F12: =(5*F3+(0.5*F4))*Main!$D18/Mill!F10 -> 6.401515152 | G12: =(5*G3+(0.5*G4))*Main!$D18/Mill!G10 -> 6.401515152 | H12: =(5*H3+(0.5*H4))*Main!$D18/Mill!H10 -> 6.401515152 | I12: =(5*I3+(0.5*I4))*Main!$D18/Mill!I10 -> 6.401515152 | J12: =(5*J3+(0.5*J4))*Main!$D18/Mill!J10 -> 6.401515152 | K12: =(5*K3+(0.5*K4))*Main!$D18/Mill!K10 -> 6.401515152 | L12: =(5*L3+(0.5*L4))*Main!$D18/Mill!L10 -> 6.401515152 | M12: =(5*M3+(0.5*M4))*Main!$D18/Mill!M10 -> 6.401515152 | N12: =(5*N3+(0.5*N4))*Main!$D18/Mill!N10 -> 6.401515152
A13: PM | B13: ?? | C13: =IF(C9<0.4,0.5,IF(C9<10,2.2,IF(C9<30,6.1,IF(C9<60,13.7,25)))) -> 0.5 | D13: =IF(D9<0.4,0.5,IF(D9<10,2.2,IF(D9<30,6.1,IF(D9<60,13.7,25)))) -> 0.5 | E13: 0.5 | F13: 0.5 | G13: 0.5 | H13: 0.5 | I13: 0.5 | J13: 0.5 | K13: 0.5 | L13: 0.5 | M13: 0.5 | N13: =IF(N9<0.4,0.5,IF(N9<10,2.2,IF(N9<30,6.1,IF(N9<60,13.7,25)))) -> 0.5
A14: TLN | B14: ?? | C14: =IF(C9<0.4,16,IF(C9<10,44.6,IF(C9<30,60.2,IF(C9<60,90,305)))) -> 16 | D14: =IF(D9<0.4,16,IF(D9<10,44.6,IF(D9<30,60.2,IF(D9<60,90,305)))) -> 16 | E14: 16 | F14: 16 | G14: 16 | H14: 16 | I14: 16 | J14: 16 | K14: 16 | L14: 16 | M14: 16 | N14: =IF(N9<0.4,16,IF(N9<10,44.6,IF(N9<30,60.2,IF(N9<60,90,305)))) -> 16
A15: TMP | B15: mach time for max power | C15: =60*C8*C11/C13 -> 0 | D15: =60*D8*D11/D13 -> 0 | E15: 0 | F15: 0 | G15: 0 | H15: 0 | I15: 0 | J15: 0 | K15: 0 | L15: 0 | M15: 0 | N15: =60*N8*N11/N13 -> 0
A16: TSU | B16: setup time | C16: =4100*(1+Main!$H14)/Mill!C2 -> 12300 | D16: =4100*(1+Main!$H14)/Mill!D2 -> 4100 | E16: =4100*(1+Main!$H14)/Mill!E2 -> 2460 | F16: =4100*(1+Main!$H14)/Mill!F2 -> 1757.142857 | G16: =4100*(1+Main!$H14)/Mill!G2 -> 1230 | H16: =4100*(1+Main!$H14)/Mill!H2 -> 615 | I16: =4100*(1+Main!$H14)/Mill!I2 -> 246 | J16: =4100*(1+Main!$H14)/Mill!J2 -> 123 | K16: =4100*(1+Main!$H14)/Mill!K2 -> 49.2 | L16: =4100*(1+Main!$H14)/Mill!L2 -> 24.6 | M16: =4100*(1+Main!$H14)/Mill!M2 -> 12.3 | N16: =4100*(1+Main!$H14)/Mill!N2 -> 123
A17: TM | B17: ?? | C17: =IF(C15>C12,1.05*C15,1.33*C12) -> 8.514015152 | D17: =IF(D15>D12,1.05*D15,1.33*D12) -> 8.514015152 | E17: 8.514015152 | F17: 8.514015152 | G17: 8.514015152 | H17: 8.514015152 | I17: 8.514015152 | J17: 8.514015152 | K17: 8.514015152 | L17: 8.514015152 | M17: 8.514015152 | N17: =IF(N15>N12,1.05*N15,1.33*N12) -> 8.514015152
A18: TT | B18: tot mach time | C18: =C17+C7+C14+C16 -> 12744.51402 | D18: =D17+D7+D14+D16 -> 4544.514015 | E18: 2904.514015 | F18: 2201.656872 | G18: 1674.514015 | H18: 1059.514015 | I18: 690.5140152 | J18: 567.5140152 | K18: 493.7140152 | L18: 469.1140152 | M18: 456.8140152 | N18: 567.5140152
A19: LT | B19: process time | C19: =C18*Material!$C24*Material!$C28/3600 -> 4.602185617 | D19: =D18*Material!$C24*Material!$C28/3600 -> 1.641074505 | E19: =E18*Material!$C24*Material!$C28/3600 -> 1.048852283 | F19: =F18*Material!$C24*Material!$C28/3600 -> 0.7950427594 | G19: =G18*Material!$C24*Material!$C28/3600 -> 0.6046856166 | H19: =H18*Material!$C24*Material!$C28/3600 -> 0.3826022832 | I19: =I18*Material!$C24*Material!$C28/3600 -> 0.2493522832 | J19: =J18*Material!$C24*Material!$C28/3600 -> 0.2049356166 | K19: =K18*Material!$C24*Material!$C28/3600 -> 0.1782856166 | L19: =L18*Material!$C24*Material!$C28/3600 -> 0.1694022832 | M19: =M18*Material!$C24*Material!$C28/3600 -> 0.1649606166 | N19: =N18*Material!$C24*Material!$C28/3600 -> 0.2049356166
A20: CPR | B20: process cost | C20: =C19*Main!$H16 -> 161.0764966 | D20: =D19*Main!$H16 -> 57.43760769 | E20: =E19*Main!$H16 -> 36.70982991 | F20: =F19*Main!$H16 -> 27.82649658 | G20: =G19*Main!$H16 -> 21.16399658 | H20: =H19*Main!$H16 -> 13.39107991 | I20: =I19*Main!$H16 -> 8.727329914 | J20: =J19*Main!$H16 -> 7.17274658 | K20: =K19*Main!$H16 -> 6.23999658 | L20: =L19*Main!$H16 -> 5.929079914 | M20: =M19*Main!$H16 -> 5.77362158 | N20: =N19*Main!$H16 -> 7.17274658
A21: PWT | B21: part weight | C21: =Mill!C9*Mill!C6 -> 0 | D21: =Mill!D9*Mill!D6 -> 0 | E21: =Mill!E9*Mill!E6 -> 0 | F21: =Mill!F9*Mill!F6 -> 0 | G21: =Mill!G9*Mill!G6 -> 0 | H21: =Mill!H9*Mill!H6 -> 0 | I21: =Mill!I9*Mill!I6 -> 0 | J21: =Mill!J9*Mill!J6 -> 0 | K21: =Mill!K9*Mill!K6 -> 0 | L21: =Mill!L9*Mill!L6 -> 0 | M21: =Mill!M9*Mill!M6 -> 0 | N21: =Mill!N9*Mill!N6 -> 0
A22: CM | B22: material cost | C22: =C9*Material!$C10 -> 0 | D22: =D9*Material!$C10 -> 0 | E22: =E9*Material!$C10 -> 0 | F22: =F9*Material!$C10 -> 0 | G22: =G9*Material!$C10 -> 0 | H22: =H9*Material!$C10 -> 0 | I22: =I9*Material!$C10 -> 0 | J22: =J9*Material!$C10 -> 0 | K22: =K9*Material!$C10 -> 0 | L22: =L9*Material!$C10 -> 0 | M22: =M9*Material!$C10 -> 0 | N22: =N9*Material!$C10 -> 0
A23: CW | B23: cost per part | C23: =C20+C22 -> 161.0764966 | D23: =D20+D22 -> 57.43760769 | E23: 36.70982991 | F23: 27.82649658 | G23: 21.16399658 | H23: 13.39107991 | I23: 8.727329914 | J23: 7.17274658 | K23: 6.23999658 | L23: 5.929079914 | M23: 5.77362158 | N23: 7.17274658

Sheet Lathe (hidden)
A1: Lathe
A2: NT | B2: Number of parts | C2: 1 | D2: 3 | E2: 5 | F2: 7 | G2: 10 | H2: 20 | I2: 50 | J2: 100 | K2: 250 | L2: 500 | M2: 1000 | N2: =Main!H15 -> 100
A3: LM | C3: =Main!$D14 -> 4 | D3: =Main!$D14 -> 4 | E3: =Main!$D14 -> 4 | F3: =Main!$D14 -> 4 | G3: =Main!$D14 -> 4 | H3: =Main!$D14 -> 4 | I3: =Main!$D14 -> 4 | J3: =Main!$D14 -> 4 | K3: =Main!$D14 -> 4 | L3: =Main!$D14 -> 4 | M3: =Main!$D14 -> 4 | N3: =Main!$D14 -> 4
A4: DA | C4: =Main!$D15 -> 2.25 | D4: =Main!$D15 -> 2.25 | E4: =Main!$D15 -> 2.25 | F4: =Main!$D15 -> 2.25 | G4: =Main!$D15 -> 2.25 | H4: =Main!$D15 -> 2.25 | I4: =Main!$D15 -> 2.25 | J4: =Main!$D15 -> 2.25 | K4: =Main!$D15 -> 2.25 | L4: =Main!$D15 -> 2.25 | M4: =Main!$D15 -> 2.25 | N4: =Main!$D15 -> 2.25
A5: DB | C5: =Main!$D16 -> 0 | D5: =Main!$D16 -> 0 | E5: =Main!$D16 -> 0 | F5: =Main!$D16 -> 0 | G5: =Main!$D16 -> 0 | H5: =Main!$D16 -> 0 | I5: =Main!$D16 -> 0 | J5: =Main!$D16 -> 0 | K5: =Main!$D16 -> 0 | L5: =Main!$D16 -> 0 | M5: =Main!$D16 -> 0 | N5: =Main!$D16 -> 0
A6: N | C6: =(Main!$D18+Main!$D19) -> 10 | D6: =(Main!$D18+Main!$D19) -> 10 | E6: =(Main!$D18+Main!$D19) -> 10 | F6: =(Main!$D18+Main!$D19) -> 10 | G6: =(Main!$D18+Main!$D19) -> 10 | H6: =(Main!$D18+Main!$D19) -> 10 | I6: =(Main!$D18+Main!$D19) -> 10 | J6: =(Main!$D18+Main!$D19) -> 10 | K6: =(Main!$D18+Main!$D19) -> 10 | L6: =(Main!$D18+Main!$D19) -> 10 | M6: =(Main!$D18+Main!$D19) -> 10 | N6: =(Main!$D18+Main!$D19) -> 10
A7: RV | C7: =Main!$D17/100 -> 0.32 | D7: =Main!$D17/100 -> 0.32 | E7: =Main!$D17/100 -> 0.32 | F7: =Main!$D17/100 -> 0.32 | G7: =Main!$D17/100 -> 0.32 | H7: =Main!$D17/100 -> 0.32 | I7: =Main!$D17/100 -> 0.32 | J7: =Main!$D17/100 -> 0.32 | K7: =Main!$D17/100 -> 0.32 | L7: =Main!$D17/100 -> 0.32 | M7: =Main!$D17/100 -> 0.32 | N7: =Main!$D17/100 -> 0.32
A8: TPT | B8: Positioning time | C8: =25*C6 -> 250 | D8: =25*D6 -> 250 | E8: 250 | F8: 250 | G8: 250 | H8: 250 | I8: 250 | J8: 250 | K8: 250 | L8: 250 | M8: 250 | N8: 250
A9: VM | B9: material removed | C9: =0.785*C3*(C4^2-C5^2)*(1-C7) -> 10.80945 | D9: =0.785*D3*(D4^2-D5^2)*(1-D7) -> 10.80945 | E9: 10.80945 | F9: 10.80945 | G9: 10.80945 | H9: 10.80945 | I9: 10.80945 | J9: 10.80945 | K9: 10.80945 | L9: 10.80945 | M9: 10.80945 | N9: 10.80945
A10: WM | B10: weight of raw material | C10: =IF(Material!$A16=1,Lathe!C9/(1-Lathe!C7)*Material!$D11/Lathe!C7,IF(Material!$A16=2,0.785*Lathe!C4^2*Lathe!C3*Material!$D11,Lathe!C9/(1-Lathe!C7)*Material!$D11)) -> 4.49863875 | D10: =IF(Material!$A16=1,Lathe!D9/(1-Lathe!D7)*Material!$D11/Lathe!D7,IF(Material!$A16=2,0.785*Lathe!D4^2*Lathe!D3*Material!$D11,Lathe!D9/(1-Lathe!D7)*Material!$D11)) -> 4.49863875 | E10: =IF(Material!$A16=1,Lathe!E9/(1-Lathe!E7)*Material!$D11/Lathe!E7,IF(Material!$A16=2,0.785*Lathe!E4^2*Lathe!E3*Material!$D11,Lathe!E9/(1-Lathe!E7)*Material!$D11)) -> 4.49863875 | F10: =IF(Material!$A16=1,Lathe!F9/(1-Lathe!F7)*Material!$D11/Lathe!F7,IF(Material!$A16=2,0.785*Lathe!F4^2*Lathe!F3*Material!$D11,Lathe!F9/(1-Lathe!F7)*Material!$D11)) -> 4.49863875 | G10: =IF(Material!$A16=1,Lathe!G9/(1-Lathe!G7)*Material!$D11/Lathe!G7,IF(Material!$A16=2,0.785*Lathe!G4^2*Lathe!G3*Material!$D11,Lathe!G9/(1-Lathe!G7)*Material!$D11)) -> 4.49863875 | H10: =IF(Material!$A16=1,Lathe!H9/(1-Lathe!H7)*Material!$D11/Lathe!H7,IF(Material!$A16=2,0.785*Lathe!H4^2*Lathe!H3*Material!$D11,Lathe!H9/(1-Lathe!H7)*Material!$D11)) -> 4.49863875 | I10: =IF(Material!$A16=1,Lathe!I9/(1-Lathe!I7)*Material!$D11/Lathe!I7,IF(Material!$A16=2,0.785*Lathe!I4^2*Lathe!I3*Material!$D11,Lathe!I9/(1-Lathe!I7)*Material!$D11)) -> 4.49863875 | J10: =IF(Material!$A16=1,Lathe!J9/(1-Lathe!J7)*Material!$D11/Lathe!J7,IF(Material!$A16=2,0.785*Lathe!J4^2*Lathe!J3*Material!$D11,Lathe!J9/(1-Lathe!J7)*Material!$D11)) -> 4.49863875 | K10: =IF(Material!$A16=1,Lathe!K9/(1-Lathe!K7)*Material!$D11/Lathe!K7,IF(Material!$A16=2,0.785*Lathe!K4^2*Lathe!K3*Material!$D11,Lathe!K9/(1-Lathe!K7)*Material!$D11)) -> 4.49863875 | L10: =IF(Material!$A16=1,Lathe!L9/(1-Lathe!L7)*Material!$D11/Lathe!L7,IF(Material!$A16=2,0.785*Lathe!L4^2*Lathe!L3*Material!$D11,Lathe!L9/(1-Lathe!L7)*Material!$D11)) -> 4.49863875 | M10: =IF(Material!$A16=1,Lathe!M9/(1-Lathe!M7)*Material!$D11/Lathe!M7,IF(Material!$A16=2,0.785*Lathe!M4^2*Lathe!M3*Material!$D11,Lathe!M9/(1-Lathe!M7)*Material!$D11)) -> 4.49863875 | N10: =IF(Material!$A16=1,Lathe!N9/(1-Lathe!N7)*Material!$D11/Lathe!N7,IF(Material!$A16=2,0.785*Lathe!N4^2*Lathe!N3*Material!$D11,Lathe!N9/(1-Lathe!N7)*Material!$D11)) -> 4.49863875
A11: RSG | B11: setup time | C11: =IF(Material!$A11=1,116.8,IF(Material!$A11=2,52.8,IF(Material!$A11=3,3.8,IF(Material!$A11=4,30.2,IF(Material!$A11=5,8.8,IF(Material!$A11=6,10.48,IF(Material!$A11=7,84.1,169.1))))))) -> 52.8 | D11: =IF(Material!$A11=1,116.8,IF(Material!$A11=2,52.8,IF(Material!$A11=3,3.8,IF(Material!$A11=4,30.2,IF(Material!$A11=5,8.8,IF(Material!$A11=6,10.48,IF(Material!$A11=7,84.1,169.1))))))) -> 52.8 | E11: =IF(Material!$A11=1,116.8,IF(Material!$A11=2,52.8,IF(Material!$A11=3,3.8,IF(Material!$A11=4,30.2,IF(Material!$A11=5,8.8,IF(Material!$A11=6,10.48,IF(Material!$A11=7,84.1,169.1))))))) -> 52.8 | F11: =IF(Material!$A11=1,116.8,IF(Material!$A11=2,52.8,IF(Material!$A11=3,3.8,IF(Material!$A11=4,30.2,IF(Material!$A11=5,8.8,IF(Material!$A11=6,10.48,IF(Material!$A11=7,84.1,169.1))))))) -> 52.8 | G11: =IF(Material!$A11=1,116.8,IF(Material!$A11=2,52.8,IF(Material!$A11=3,3.8,IF(Material!$A11=4,30.2,IF(Material!$A11=5,8.8,IF(Material!$A11=6,10.48,IF(Material!$A11=7,84.1,169.1))))))) -> 52.8 | H11: =IF(Material!$A11=1,116.8,IF(Material!$A11=2,52.8,IF(Material!$A11=3,3.8,IF(Material!$A11=4,30.2,IF(Material!$A11=5,8.8,IF(Material!$A11=6,10.48,IF(Material!$A11=7,84.1,169.1))))))) -> 52.8 | I11: =IF(Material!$A11=1,116.8,IF(Material!$A11=2,52.8,IF(Material!$A11=3,3.8,IF(Material!$A11=4,30.2,IF(Material!$A11=5,8.8,IF(Material!$A11=6,10.48,IF(Material!$A11=7,84.1,169.1))))))) -> 52.8 | J11: =IF(Material!$A11=1,116.8,IF(Material!$A11=2,52.8,IF(Material!$A11=3,3.8,IF(Material!$A11=4,30.2,IF(Material!$A11=5,8.8,IF(Material!$A11=6,10.48,IF(Material!$A11=7,84.1,169.1))))))) -> 52.8 | K11: =IF(Material!$A11=1,116.8,IF(Material!$A11=2,52.8,IF(Material!$A11=3,3.8,IF(Material!$A11=4,30.2,IF(Material!$A11=5,8.8,IF(Material!$A11=6,10.48,IF(Material!$A11=7,84.1,169.1))))))) -> 52.8 | L11: =IF(Material!$A11=1,116.8,IF(Material!$A11=2,52.8,IF(Material!$A11=3,3.8,IF(Material!$A11=4,30.2,IF(Material!$A11=5,8.8,IF(Material!$A11=6,10.48,IF(Material!$A11=7,84.1,169.1))))))) -> 52.8 | M11: =IF(Material!$A11=1,116.8,IF(Material!$A11=2,52.8,IF(Material!$A11=3,3.8,IF(Material!$A11=4,30.2,IF(Material!$A11=5,8.8,IF(Material!$A11=6,10.48,IF(Material!$A11=7,84.1,169.1))))))) -> 52.8 | N11: =IF(Material!$A11=1,116.8,IF(Material!$A11=2,52.8,IF(Material!$A11=3,3.8,IF(Material!$A11=4,30.2,IF(Material!$A11=5,8.8,IF(Material!$A11=6,10.48,IF(Material!$A11=7,84.1,169.1))))))) -> 52.8
A12: PS | B12: cutting energy | C12: =IF(Material!$A11=1,0.2,IF(Material!$A11=2,1.1,IF(Material!$A11=3,2.8,IF(Material!$A11=4,1.25,IF(Material!$A11=5,1.5,IF(Material!$A11=6,1.15,IF(Material!$A11=7,0.73,0.16))))))) -> 1.1 | D12: =IF(Material!$A11=1,0.2,IF(Material!$A11=2,1.1,IF(Material!$A11=3,2.8,IF(Material!$A11=4,1.25,IF(Material!$A11=5,1.5,IF(Material!$A11=6,1.15,IF(Material!$A11=7,0.73,0.16))))))) -> 1.1 | E12: =IF(Material!$A11=1,0.2,IF(Material!$A11=2,1.1,IF(Material!$A11=3,2.8,IF(Material!$A11=4,1.25,IF(Material!$A11=5,1.5,IF(Material!$A11=6,1.15,IF(Material!$A11=7,0.73,0.16))))))) -> 1.1 | F12: =IF(Material!$A11=1,0.2,IF(Material!$A11=2,1.1,IF(Material!$A11=3,2.8,IF(Material!$A11=4,1.25,IF(Material!$A11=5,1.5,IF(Material!$A11=6,1.15,IF(Material!$A11=7,0.73,0.16))))))) -> 1.1 | G12: =IF(Material!$A11=1,0.2,IF(Material!$A11=2,1.1,IF(Material!$A11=3,2.8,IF(Material!$A11=4,1.25,IF(Material!$A11=5,1.5,IF(Material!$A11=6,1.15,IF(Material!$A11=7,0.73,0.16))))))) -> 1.1 | H12: =IF(Material!$A11=1,0.2,IF(Material!$A11=2,1.1,IF(Material!$A11=3,2.8,IF(Material!$A11=4,1.25,IF(Material!$A11=5,1.5,IF(Material!$A11=6,1.15,IF(Material!$A11=7,0.73,0.16))))))) -> 1.1 | I12: =IF(Material!$A11=1,0.2,IF(Material!$A11=2,1.1,IF(Material!$A11=3,2.8,IF(Material!$A11=4,1.25,IF(Material!$A11=5,1.5,IF(Material!$A11=6,1.15,IF(Material!$A11=7,0.73,0.16))))))) -> 1.1 | J12: =IF(Material!$A11=1,0.2,IF(Material!$A11=2,1.1,IF(Material!$A11=3,2.8,IF(Material!$A11=4,1.25,IF(Material!$A11=5,1.5,IF(Material!$A11=6,1.15,IF(Material!$A11=7,0.73,0.16))))))) -> 1.1 | K12: =IF(Material!$A11=1,0.2,IF(Material!$A11=2,1.1,IF(Material!$A11=3,2.8,IF(Material!$A11=4,1.25,IF(Material!$A11=5,1.5,IF(Material!$A11=6,1.15,IF(Material!$A11=7,0.73,0.16))))))) -> 1.1 | L12: =IF(Material!$A11=1,0.2,IF(Material!$A11=2,1.1,IF(Material!$A11=3,2.8,IF(Material!$A11=4,1.25,IF(Material!$A11=5,1.5,IF(Material!$A11=6,1.15,IF(Material!$A11=7,0.73,0.16))))))) -> 1.1 | M12: =IF(Material!$A11=1,0.2,IF(Material!$A11=2,1.1,IF(Material!$A11=3,2.8,IF(Material!$A11=4,1.25,IF(Material!$A11=5,1.5,IF(Material!$A11=6,1.15,IF(Material!$A11=7,0.73,0.16))))))) -> 1.1 | N12: =IF(Material!$A11=1,0.2,IF(Material!$A11=2,1.1,IF(Material!$A11=3,2.8,IF(Material!$A11=4,1.25,IF(Material!$A11=5,1.5,IF(Material!$A11=6,1.15,IF(Material!$A11=7,0.73,0.16))))))) -> 1.1
A13: AM | B13: surface area | C13: =3.1416*C3*C4 -> 28.2744 | D13: =3.1416*D3*D4 -> 28.2744 | E13: 28.2744 | F13: 28.2744 | G13: 28.2744 | H13: 28.2744 | I13: 28.2744 | J13: 28.2744 | K13: 28.2744 | L13: 28.2744 | M13: 28.2744 | N13: 28.2744
A14: TMC | B14: machining time | C14: =60*C13/C11 -> 32.13 | D14: =60*D13/D11 -> 32.13 | E14: 32.13 | F14: 32.13 | G14: 32.13 | H14: 32.13 | I14: 32.13 | J14: 32.13 | K14: 32.13 | L14: 32.13 | M14: 32.13 | N14: 32.13
A15: PM | B15: ?? | C15: =IF(C10<0.4,0.5,IF(C10<10,2.2,IF(C10<30,6.1,IF(C10<60,13.7,25)))) -> 2.2 | D15: =IF(D10<0.4,0.5,IF(D10<10,2.2,IF(D10<30,6.1,IF(D10<60,13.7,25)))) -> 2.2 | E15: 2.2 | F15: 2.2 | G15: 2.2 | H15: 2.2 | I15: 2.2 | J15: 2.2 | K15: 2.2 | L15: 2.2 | M15: 2.2 | N15: 2.2
A16: TLN | B16: ?? | C16: =IF(C10<0.4,16,IF(C10<10,44.6,IF(C10<30,60.2,IF(C10<60,90,305)))) -> 44.6 | D16: =IF(D10<0.4,16,IF(D10<10,44.6,IF(D10<30,60.2,IF(D10<60,90,305)))) -> 44.6 | E16: 44.6 | F16: 44.6 | G16: 44.6 | H16: 44.6 | I16: 44.6 | J16: 44.6 | K16: 44.6 | L16: 44.6 | M16: 44.6 | N16: 44.6
A17: TMP | B17: mach time for max power | C17: =60*C9*C12/C15 -> 324.2835 | D17: =60*D9*D12/D15 -> 324.2835 | E17: 324.2835 | F17: 324.2835 | G17: 324.2835 | H17: 324.2835 | I17: 324.2835 | J17: 324.2835 | K17: 324.2835 | L17: 324.2835 | M17: 324.2835 | N17: =60*N9*N12/N15 -> 324.2835
A18: TSU | B18: setup time | C18: =4100*(1+Main!$H14)/Mill!C2 -> 12300 | D18: =4100*(1+Main!$H14)/Mill!D2 -> 4100 | E18: =4100*(1+Main!$H14)/Mill!E2 -> 2460 | F18: =4100*(1+Main!$H14)/Mill!F2 -> 1757.142857 | G18: =4100*(1+Main!$H14)/Mill!G2 -> 1230 | H18: =4100*(1+Main!$H14)/Mill!H2 -> 615 | I18: =4100*(1+Main!$H14)/Mill!I2 -> 246 | J18: =4100*(1+Main!$H14)/Mill!J2 -> 123 | K18: =4100*(1+Main!$H14)/Mill!K2 -> 49.2 | L18: =4100*(1+Main!$H14)/Mill!L2 -> 24.6 | M18: =4100*(1+Main!$H14)/Mill!M2 -> 12.3 | N18: =4100*(1+Main!$H14)/Mill!N2 -> 123
A19: TM | B19: ?? | C19: =IF(C17>C14,1.05*C17,1.33*C14) -> 340.497675 | D19: =IF(D17>D14,1.05*D17,1.33*D14) -> 340.497675 | E19: 340.497675 | F19: 340.497675 | G19: 340.497675 | H19: 340.497675 | I19: 340.497675 | J19: 340.497675 | K19: 340.497675 | L19: 340.497675 | M19: 340.497675 | N19: =IF(N17>N14,1.05*N17,1.33*N14) -> 340.497675
A20: TM | B20: correction | C20: =IF(C4>2,C19+10.8*C6,C19+2.7*C4^2*C6) -> 448.497675 | D20: =IF(D4>2,D19+10.8*D6,D19+2.7*D4^2*D6) -> 448.497675 | E20: 448.497675 | F20: 448.497675 | G20: 448.497675 | H20: 448.497675 | I20: 448.497675 | J20: 448.497675 | K20: 448.497675 | L20: 448.497675 | M20: 448.497675 | N20: 448.497675
A21: TT | B21: tot mach time | C21: =C20+C8+C16+C18 -> 13043.09768 | D21: =D20+D8+D16+D18 -> 4843.097675 | E21: 3203.097675 | F21: 2500.240532 | G21: 1973.097675 | H21: 1358.097675 | I21: 989.097675 | J21: 866.097675 | K21: 792.297675 | L21: 767.697675 | M21: 755.397675 | N21: 866.097675
A22: LT | B22: process time | C22: =C21*Material!$C24*Material!$C28/3600 -> 4.710007494 | D22: =D21*Material!$C24*Material!$C28/3600 -> 1.748896383 | E22: =E21*Material!$C24*Material!$C28/3600 -> 1.15667416 | F22: =F21*Material!$C24*Material!$C28/3600 -> 0.9028646366 | G22: =G21*Material!$C24*Material!$C28/3600 -> 0.7125074937 | H22: =H21*Material!$C24*Material!$C28/3600 -> 0.4904241604 | I22: =I21*Material!$C24*Material!$C28/3600 -> 0.3571741604 | J22: =J21*Material!$C24*Material!$C28/3600 -> 0.3127574938 | K22: =K21*Material!$C24*Material!$C28/3600 -> 0.2861074938 | L22: =L21*Material!$C24*Material!$C28/3600 -> 0.2772241604 | M22: =M21*Material!$C24*Material!$C28/3600 -> 0.2727824938 | N22: =N21*Material!$C24*Material!$C28/3600 -> 0.3127574938
A23: CPR | B23: process cost | C23: =C22*Main!$H16 -> 164.8502623 | D23: =D22*Main!$H16 -> 61.21137339 | E23: =E22*Main!$H16 -> 40.48359561 | F23: =F22*Main!$H16 -> 31.60026228 | G23: =G22*Main!$H16 -> 24.93776228 | H23: =H22*Main!$H16 -> 17.16484561 | I23: =I22*Main!$H16 -> 12.50109561 | J23: =J22*Main!$H16 -> 10.94651228 | K23: =K22*Main!$H16 -> 10.01376228 | L23: =L22*Main!$H16 -> 9.702845615 | M23: =M22*Main!$H16 -> 9.547387281 | N23: =N22*Main!$H16 -> 10.94651228
A24: PWT | B24: part weight | C24: =C10*C7 -> 1.4395644 | D24: =D10*D7 -> 1.4395644 | E24: 1.4395644 | F24: 1.4395644 | G24: 1.4395644 | H24: 1.4395644 | I24: 1.4395644 | J24: 1.4395644 | K24: 1.4395644 | L24: 1.4395644 | M24: 1.4395644 | N24: 1.4395644
A25: CM | B25: material cost | C25: =C10*Material!$C10 -> 1.484550787 | D25: =D10*Material!$C10 -> 1.484550787 | E25: =E10*Material!$C10 -> 1.484550787 | F25: =F10*Material!$C10 -> 1.484550787 | G25: =G10*Material!$C10 -> 1.484550787 | H25: =H10*Material!$C10 -> 1.484550787 | I25: =I10*Material!$C10 -> 1.484550787 | J25: =J10*Material!$C10 -> 1.484550787 | K25: =K10*Material!$C10 -> 1.484550787 | L25: =L10*Material!$C10 -> 1.484550787 | M25: =M10*Material!$C10 -> 1.484550787 | N25: =N10*Material!$C10 -> 1.484550787
A26: CW | B26: cost per part | C26: =C23+C25 -> 166.3348131 | D26: =D23+D25 -> 62.69592418 | E26: 41.9681464 | F26: 33.08481307 | G26: 26.42231307 | H26: 18.6493964 | I26: 13.9856464 | J26: 12.43106307 | K26: 11.49831307 | L26: 11.1873964 | M26: 11.03193807 | N26: 12.43106307

Sheet Material (hidden)
C1: COST
A2: Aluminum Alloy | C2: =IF(A16=1,4.5,IF(A16=2,2.5,6)) -> 2.5
A3: Low Carbon Steel | C3: =IF(A16=1,0.3,IF(A16=2,0.33,0.45)) -> 0.33
A4: High Carbon Steel | C4: =IF(A16=1,0.55,IF(A16=2,1.12,1)) -> 1.12
A5: Stainless Steel | C5: =IF(A16=1,2.6,IF(A16=2,3.5,3.5)) -> 3.5
A6: High Strength Alloy Steel | C6: =IF(A16=1,2,IF(A16=2,1.5,2.5)) -> 1.5
A7: Titanium Alloy | C7: =IF(A16=1,12.5,IF(A16=2,19,22)) -> 19
A8: Copper Alloy | C8: =IF(A16=1,3.12,IF(A16=2,4,5)) -> 4
A9: Magnesium Alloy | C9: =IF(A16=1,6.75,IF(A16=2,5,5)) -> 5
B10: Cost | C10: =IF(A11=1,C2,IF(A11=2,C3,IF(A11=3,C4,IF(A11=4,C5,IF(A11=5,C6,IF(A11=6,C7,IF(A11=7,C8,C9))))))) -> 0.33
A11: 2 | B11: MAT | C11: Density | D11: =IF(A11=1,0.1,IF(A11=2,0.283,IF(A11=3,0.31,IF(A11=4,0.283,IF(A11=5,0.31,IF(A11=6,0.16,IF(A11=7,0.32,0.066))))))) -> 0.283 | E11: RHO
A13: Plate
A14: Bar
A15: Tube
A16: 2 | B16: SHP
A18: Lathe
A19: Mill
A20: 1 | B20: MACH
A21: Large
A22: Intermediate
A23: Fit
A24: 3 | B24: TOL | C24: =IF(A24=1,0.8,IF(A24 =2,1,1.3)) -> 1.3 | D24: TF
A25: Rough
A26: Intermediate
A27: Fine
A28: 2 | B28: FIN | C28: =IF(A28=1,0.7,IF(A28=2,1,1.4)) -> 1 | D28: FF
B30: Plot setup
B31: 1 | C31: 3 | D31: 5 | E31: 7 | F31: 10 | G31: 20 | H31: 50 | I31: 100 | J31: 250 | K31: 500 | L31: 1000 | M31: =Main!H15 -> 100
B32: =IF($A$20=2,Mill!C$23,Lathe!C26) -> 166.3348131 | C32: =IF($A$20=2,Mill!D$23,Lathe!D26) -> 62.69592418 | D32: =IF($A$20=2,Mill!E$23,Lathe!E26) -> 41.9681464 | E32: =IF($A$20=2,Mill!F$23,Lathe!F26) -> 33.08481307 | F32: =IF($A$20=2,Mill!G$23,Lathe!G26) -> 26.42231307 | G32: =IF($A$20=2,Mill!H$23,Lathe!H26) -> 18.6493964 | H32: =IF($A$20=2,Mill!I$23,Lathe!I26) -> 13.9856464 | I32: =IF($A$20=2,Mill!J$23,Lathe!J26) -> 12.43106307 | J32: =IF($A$20=2,Mill!K$23,Lathe!K26) -> 11.49831307 | K32: =IF($A$20=2,Mill!L$23,Lathe!L26) -> 11.1873964 | L32: =IF($A$20=2,Mill!M$23,Lathe!M26) -> 11.03193807 | M32: =IF($A$20=2,Mill!N$23,Lathe!N26) -> 12.43106307
